fUSD/lending_fUSD_20240210
["ID","MTS","AMOUNT","RATE_DAILY","PERIOD"]
[313646358,1707533433660,-151.0,0.00029589,7]
[313646360,1707533433669,-151.0,0.00029589,7]
[313646362,1707533433678,-157.37398,0.00029589,7]
[313646364,1707533433688,-471.597165,0.00029589,2]
[313646366,1707533433697,-471.597165,0.00029589,2]
[313646368,1707533433706,-151.0,0.00029589,7]
[313646370,1707533433715,-151.0,0.00029589,7]
[313646372,1707533433725,-151.0,0.00029589,7]
[313646373,1707533433734,-151.0,0.00029589,7]
[313646374,1707533433743,-151.0,0.00029589,7]
[313646375,1707533433752,-439.916789,0.00029589,7]
[313646376,1707533433761,-439.916789,0.00029589,7]
[313646377,1707533433770,-151.0,0.00029589,7]
[313646378,1707533433780,-1177.422348,0.00029589,7]
[313646379,1707533433789,-151.0,0.00029589,7]
[313646380,1707533433798,-151.0,0.00029589,7]
[313646381,1707533433808,-1098.624231,0.00029589,7]
[313646382,1707533433817,-1098.624231,0.00029589,7]
[313646383,1707533433827,-151.0,0.00029589,7]
[313646384,1707533433837,-163.681379,0.00029589,7]
[313646385,1707533433846,-252.3713,0.00029589,7]
[313646386,1707533433855,-252.3713,0.00029589,7]
[313646387,1707533433865,-151.0,0.00029589,7]
[313646388,1707533433874,-151.0,0.00029589,7]
[313646389,1707533433883,-151.0,0.00029589,7]
[313646390,1707533433893,-151.0,0.00029589,7]
[313646391,1707533433902,-1196.967397,0.00029589,7]
[313646392,1707533433911,-1196.967397,0.00029589,7]
[313646393,1707533433920,-208.317989,0.00029589,7]
[313646394,1707533433930,-151.0,0.00029589,7]
[313646395,1707533433939,-913.56,0.00029589,2]
[313646396,1707533433948,-404.45,0.00029589,2]
[313646397,1707533433957,-404.45,0.00029589,2]
[313646398,1707533433966,-913.56,0.00029589,2]
[313646399,1707533433976,-404.45,0.00029589,2]
[313646400,1707533433985,-913.56,0.00029589,2]
[313646401,1707533433994,-913.56,0.00029589,2]
[313646402,1707533434003,-913.56,0.00029589,2]
[313646403,1707533434012,-404.45,0.00029589,2]
[313646404,1707533434021,-404.45,0.00029589,2]
[313646405,1707533434031,-547.06,0.00029589,2]
[313646406,1707533434040,-404.45,0.00029589,2]
[313646407,1707533434049,-404.45,0.00029589,2]
[313646408,1707533434058,-404.45,0.00029589,2]
[313646409,1707533434069,-1173.87,0.000296,2]
[313646410,1707533434080,-153.47080579,0.000296,2]
[313646411,1707533434090,-2485.19,0.000296,2]
[313646412,1707533434099,-1703.31336112,0.00029623,2]
[313646413,1707533434108,-165.16266065,0.00029623,2]
[313646414,1707533434118,-155.053293,0.00029623,7]
[313646415,1707533434126,-2000.0,0.00029623,3]
[313646416,1707533434135,-448.92268517,0.00029668,2]
[313646417,1707533434145,-722.53622527,0.00029676,2]
[313646418,1707533434156,-1975.73502071,0.00029676,2]
[313646419,1707533434166,-47803.93774158,0.00029676,2]
[313646420,1707533434175,-192.88551302,0.00029676,2]
[313646421,1707533434185,-779.35698227,0.00029676,2]
[313646422,1707533434194,-151.0,0.00029676,7]
[313646423,1707533434203,-171.285491,0.00029676,7]
[313646424,1707533434212,-187.159764,0.00029676,7]
[313646425,1707533434222,-156.351884,0.00029676,7]
[313646426,1707533434231,-158.399902,0.00029676,7]
[313646427,1707533434241,-151.0,0.00029676,7]
[313646428,1707533434251,-151.0,0.00029676,7]
[313646429,1707533434260,-151.0,0.00029676,7]
[313646430,1707533434270,-151.0,0.00029676,7]
[313646431,1707533434279,-206.866422,0.00029676,7]
[313646432,1707533434288,-163.278018,0.00029676,7]
[313646433,1707533434298,-471.597165,0.00029676,2]
[313646434,1707533434307,-471.597165,0.00029676,2]
[313646435,1707533434316,-151.0,0.00029676,7]
[313646436,1707533434325,-153.992017,0.00029676,7]
[313646437,1707533434334,-151.0,0.00029676,7]
[313646438,1707533434343,-151.0,0.00029676,7]
[313646439,1707533434352,-151.0,0.00029676,7]
[313646440,1707533434362,-439.916789,0.00029676,7]
[313646441,1707533434371,-439.916789,0.00029676,7]
[313646442,1707533434381,-151.0,0.00029676,7]
[313646443,1707533434390,-1177.422348,0.00029676,7]
[313646444,1707533434399,-151.0,0.00029676,7]
[313646445,1707533434408,-151.0,0.00029676,7]
[313646446,1707533434417,-1098.624231,0.00029676,7]
[313646447,1707533434426,-1098.624231,0.00029676,7]
[313646448,1707533434436,-151.0,0.00029676,7]
[313646449,1707533434446,-252.3713,0.00029676,7]
[313646450,1707533434455,-252.3713,0.00029676,7]
[313646451,1707533434464,-151.0,0.00029676,7]
[313646452,1707533434473,-166.146245,0.00029676,7]
[313646453,1707533434483,-183.386969,0.00029676,7]
[313646454,1707533434493,-151.0,0.00029676,7]
[313646455,1707533434502,-1196.967397,0.00029676,7]
[313646456,1707533434511,-1196.967397,0.00029676,7]
[313646457,1707533434519,-151.0,0.00029676,7]
[313646458,1707533434529,-281.74457242,0.00029677,2]
[313646459,1707533434538,-541.03106199,0.00029677,2]
[313646460,1707533434547,-152027.55168234,0.00029678,2]
[313646461,1707533434557,-91.75485215,0.00029678,7]
[313646462,1707533434613,-59.24514785,0.00029678,7]
[313646463,1707533434622,-154.195391,0.00029678,7]
[313646464,1707533434631,-151.0,0.00029678,7]
[313646465,1707533434640,-151.0,0.00029678,7]
[313646466,1707533434649,-194.873025,0.00029678,7]
[313646467,1707533434657,-471.597165,0.00029678,2]
[313646468,1707533434667,-471.597165,0.00029678,2]
[313646469,1707533434676,-151.0,0.00029678,7]
[313646470,1707533434684,-151.0,0.00029678,7]
[313646471,1707533434693,-151.0,0.00029678,7]
[313646472,1707533434701,-151.0,0.00029678,7]
[313646473,1707533434710,-439.916789,0.00029678,7]
[313646474,1707533434719,-439.916789,0.00029678,7]
[313646475,1707533434727,-151.0,0.00029678,7]
[313646476,1707533434736,-1177.422348,0.00029678,7]
[313646477,1707533434745,-151.0,0.00029678,7]
[313646478,1707533434754,-151.0,0.00029678,7]
[313646479,1707533434764,-1098.624231,0.00029678,7]
[313646480,1707533434773,-1098.624231,0.00029678,7]
[313646481,1707533434783,-151.0,0.00029678,7]
[313646482,1707533434792,-252.3713,0.00029678,7]
[313646483,1707533434802,-252.3713,0.00029678,7]
[313646484,1707533434811,-151.0,0.00029678,7]
[313646485,1707533434821,-151.0,0.00029678,7]
[313646486,1707533434830,-1196.967397,0.00029678,7]
[313646487,1707533434839,-1196.967397,0.00029678,7]
[313646488,1707533434849,-151.0,0.00029678,7]
[313646489,1707533434859,-151.0,0.00029683,7]
[313646490,1707533434868,-151.0,0.00029683,7]
[313646491,1707533434878,-471.597165,0.00029683,2]
[313646492,1707533434888,-471.597165,0.00029683,2]
[313646493,1707533434899,-471.597165,0.00029683,2]
[313646494,1707533434910,-471.597165,0.00029683,2]
[313646495,1707533434919,-151.0,0.00029683,7]
[313646496,1707533434929,-151.0,0.00029683,7]
[313646497,1707533434939,-152.450387,0.00029683,7]
[313646498,1707533434948,-151.0,0.00029683,7]
[313646499,1707533434958,-151.0,0.00029683,7]
[313646500,1707533434967,-151.0,0.00029683,7]
[313646501,1707533434977,-151.0,0.00029683,7]
[313646502,1707533434987,-439.916789,0.00029683,7]
[313646503,1707533434997,-439.916789,0.00029683,7]
[313646504,1707533435007,-439.916789,0.00029683,7]
[313646505,1707533435016,-439.916789,0.00029683,7]
[313646506,1707533435026,-221436.1199999,0.00029683,2]
[313646507,1707533435035,-151.0,0.00029683,7]
[313646508,1707533435045,-151.0,0.00029683,7]
[313646509,1707533435054,-1177.422348,0.00029683,7]
[313646510,1707533435064,-1177.422348,0.00029683,7]
[313646511,1707533435077,-125219.766075,0.00029683,2]
[313646512,1707533435086,-161.361156,0.00029683,7]
[313646513,1707533435095,-158.545027,0.00029683,7]
[313646514,1707533435104,-1098.624231,0.00029683,7]
[313646515,1707533435115,-1098.624231,0.00029683,7]
[313646516,1707533435124,-1098.624231,0.00029683,7]
[313646517,1707533435134,-1098.624231,0.00029683,7]
[313646518,1707533435143,-267.299246,0.00029683,7]
[313646519,1707533435154,-252.3713,0.00029683,7]
[313646520,1707533435163,-252.3713,0.00029683,7]
[313646521,1707533435173,-252.3713,0.00029683,7]
[313646522,1707533435183,-252.3713,0.00029683,7]
[313646523,1707533435193,-151.0,0.00029683,7]
[313646524,1707533435202,-151.0,0.00029683,7]
[313646525,1707533435212,-151.0,0.00029683,7]
[313646526,1707533435222,-247.80605,0.00029683,7]
[313646527,1707533435231,-1196.967397,0.00029683,7]
[313646528,1707533435242,-1196.967397,0.00029683,7]
[313646529,1707533435254,-1196.967397,0.00029683,7]
[313646530,1707533435264,-1196.967397,0.00029683,7]
[313646531,1707533435273,-151.0,0.00029683,7]
[313646532,1707533435283,-151.0,0.00029683,7]
[313646533,1707533435292,-2000.0,0.00029687,2]
[313646534,1707533435302,-200.0,0.00029687,2]
[313646535,1707533435311,-2000.0,0.00029687,2]
[313646536,1707533435321,-200.0,0.00029687,2]
[313646537,1707533435330,-512.77390426,0.00029694,4]
[313646538,1707533435340,-151.0,0.00029703,7]
[313646539,1707533435350,-151.0,0.00029723,7]
[313646540,1707533435359,-151.0,0.00029743,7]
[313646541,1707533435368,-151.0,0.00029764,7]
[313646542,1707533435378,-151.0,0.00029764,7]
[313646543,1707533435387,-439.916789,0.00029764,7]
[313646544,1707533435397,-439.916789,0.00029764,7]
[313646545,1707533435406,-5000.0,0.0002978,2]
[313646546,1707533435415,-471.597165,0.0002978,2]
[313646547,1707533435424,-471.597165,0.0002978,2]
[313646548,1707533435434,-151.0,0.0002978,7]
[313646549,1707533435446,-151.0,0.0002978,7]
[313646550,1707533435456,-1177.422348,0.0002978,7]
[313646551,1707533435466,-1567.09805022,0.0002978,2]
[313646552,1707533435476,-1098.624231,0.0002978,7]
[313646553,1707533435485,-1098.624231,0.0002978,7]
[313646554,1707533435495,-252.3713,0.0002978,7]
[313646555,1707533435506,-252.3713,0.0002978,7]
[313646556,1707533435515,-151.0,0.0002978,7]
[313646557,1707533435525,-3474.17703604,0.0002978,2]
[313646558,1707533435534,-12112.54145017,0.0002978,2]
[313646559,1707533435544,-1196.967397,0.0002978,7]
[313646560,1707533435554,-1196.967397,0.0002978,7]
[313646561,1707533435563,-151.0,0.0002978,7]
[313646562,1707533435573,-5537.49417006,0.00029799,2]
[313646563,1707533435583,-151.0,0.000298,7]
[313646564,1707533435592,-151.0,0.000298,7]
[313646565,1707533435601,-241.23393,0.000298,7]
[313646566,1707533435611,-439.916789,0.000298,7]
[313646567,1707533435621,-439.916789,0.000298,7]
[313646568,1707533435630,-308.97188618,0.000298,16]
[313646569,1707533435640,-1703.31336102,0.0002981,2]
[313646570,1707533435649,-471.597165,0.00029858,2]
[313646571,1707533435658,-471.597165,0.00029858,2]
[313646572,1707533435668,-151.0,0.00029858,7]
[313646573,1707533435677,-151.0,0.00029858,7]
[313646574,1707533435687,-439.916789,0.00029858,7]
[313646575,1707533435696,-439.916785,0.00029858,7]
[313646576,1707533435705,-16742.74437016,0.00029858,2]
[313646577,1707533435719,-472.96270286,0.00029858,2]
[313646578,1707533435731,-391.9015,0.00029858,2]
[313646579,1707533435747,-1498.94636376,0.00029858,2]
[313646580,1707533435759,-298.65266695,0.00029858,2]
[313646581,1707533435771,-411.09031236,0.00029858,2]
[313646582,1707533435783,-577.5783648,0.00029858,2]
[313646583,1707533435795,-818.10924833,0.00029858,2]
[313646584,1707533435806,-1964.1773477,0.00029858,2]
[313646585,1707533435842,-151.0,0.00029589,7]
[313646586,1707533435851,-1065.44,0.00029858,2]
[313646587,1707533435863,-1268.55022332,0.00029858,2]
[313646588,1707533435875,-6004.13120219,0.00029858,2]
[313646589,1707533435887,-499.16534257,0.00029858,2]
[313646590,1707533435907,-1956.69757129,0.00029858,2]
[313646598,1707533437856,-500.0,0.00029406,7]
[313646599,1707533437866,-151.0,0.00029406,7]
[313646600,1707533437876,-500.0,0.00029406,7]
[313646601,1707533437886,-529.840057,0.00029406,7]
[313646602,1707533437895,-500.0,0.00029578,7]
[313646603,1707533437905,-151.0,0.00029578,7]
[313646604,1707533437915,-500.0,0.00029578,7]
[313646605,1707533437924,-529.840057,0.00029578,7]
[313646606,1707533437934,-500.0,0.00029589,7]
[313646607,1707533437943,-151.0,0.00029589,7]
[313646608,1707533437953,-500.0,0.00029589,7]
[313646609,1707533437962,-486.168466,0.00029589,7]
[313646613,1707533440961,-151.0,0.00029406,7]
[313646614,1707533440970,-529.840057,0.00029406,7]
[313646615,1707533440980,-29.771943,0.00029578,7]
[313646660,1707533442731,-239.889599,0.00029578,7]
[313646662,1707533442742,-352.03844033,0.00029578,7]
[313646665,1707533442755,-177.80161667,0.00029578,7]
[313646667,1707533442765,-43.671591,0.00029589,7]
[313646669,1707533442775,-529.840057,0.00029589,7]
[313646671,1707533442785,-151.0,0.00029676,7]
[313646673,1707533442794,-500.0,0.00029676,7]
[313646675,1707533442804,-151.0,0.00029676,7]
[313646677,1707533442814,-500.0,0.00029676,7]
[313646679,1707533442824,-529.840057,0.00029676,7]
[313646681,1707533442833,-529.840057,0.00029676,7]
[313646683,1707533442843,-151.0,0.00029678,7]
[313646685,1707533442853,-500.0,0.00029678,7]
[313646687,1707533442862,-151.0,0.00029678,7]
[313646689,1707533442872,-500.0,0.00029678,7]
[313646691,1707533442881,-529.840057,0.00029678,7]
[313646693,1707533442891,-529.840057,0.00029678,7]
[313646696,1707533442900,-151.0,0.00029683,7]
[313646698,1707533442910,-151.0,0.00029683,7]
[313646700,1707533442919,-500.0,0.00029683,7]
[313646702,1707533442928,-500.0,0.00029683,7]
[313646704,1707533442937,-151.0,0.00029683,7]
[313646706,1707533442949,-151.0,0.00029683,7]
[313646709,1707533442958,-500.0,0.00029683,7]
[313646711,1707533442966,-529.840057,0.00029683,7]
[313646713,1707533442980,-500.0,0.00029683,7]
[313646714,1707533442989,-529.840057,0.00029683,7]
[313646715,1707533442998,-529.840057,0.00029683,7]
[313646717,1707533443007,-529.840057,0.00029683,7]
[313646720,1707533443017,-188.11560584,0.00029777,2]
[313646722,1707533443027,-151.0,0.0002978,7]
[313646725,1707533443037,-500.0,0.0002978,7]
[313646727,1707533443047,-276.693538,0.0002978,7]
[313646729,1707533443057,-500.0,0.0002978,7]
[313646731,1707533443068,-529.840057,0.0002978,7]
[313646733,1707533443081,-529.840057,0.0002978,7]
[313646736,1707533443090,-8293.89990283,0.00029858,2]
[313646739,1707533443103,-256.33337003,0.00029858,2]
[313646742,1707533443116,-2266.64450217,0.00029858,2]
[313646745,1707533443137,-500.0,0.00029858,2]
[313646749,1707533443166,-80296.3035,0.00029858,2]
[313646752,1707533443184,-362.20011214,0.00029858,2]
[313646817,1707533449245,-153.47080579,0.000296,2]
[313646818,1707533449255,-155.92647831,0.00029856,2]
[313646819,1707533449265,-263.71092641,0.00029856,2]
[313646820,1707533449275,-298.58449128,0.00029857,2]
[313646821,1707533449284,-21671.85161909,0.00029858,2]
[313646822,1707533980192,516.62,0.00026921,10]
[313646823,1707533980379,516.62,0.0002758,10]
[313646825,1707534415430,309.97,0.00026184,10]
[313646826,1707534415608,309.97,0.00026825,10]
[313646827,1707534415848,309.97,0.00027467,10]
[313646854,1707534631731,-640.24800772,0.00023989,2]
[313646856,1707534631740,-226.05638171,0.0002399,2]
[313646858,1707534631752,-450.25,0.0002399,2]
[313646859,1707534631763,-390.72,0.0002399,2]
[313646860,1707534631775,-1338.26348012,0.0002399,2]
[313646861,1707534631784,-769.39206988,0.00023998,2]
[313646862,1707534631827,-125.21697819,0.00023998,2]
[313646863,1707534631836,-252.34,0.00024354,2]
[313646864,1707534631845,-179.47882319,0.00025,3]
[313646865,1707534631856,-865.97179194,0.00025,3]
[313646866,1707534631867,-204.54938487,0.00025,3]
[313646867,1707534631876,-203.06443632,0.00025086,2]
[313646868,1707534631885,-13.39780559,0.00025087,2]
[313646869,1707534631896,-1124.72457423,0.00025087,2]
[313646870,1707534631908,-770.79272265,0.00025087,2]
[313646871,1707534631917,-1255.6445379,0.00025088,2]
[313646872,1707534631925,-212.0,0.00025163,2]
[313646873,1707534631934,-150.0,0.00025499,2]
[313646874,1707534631943,-2827.61080112,0.000255,2]
[313646875,1707534631954,-500.63970618,0.000255,2]
[313646876,1707534631969,-422.84951053,0.000255,2]
[313646877,1707534631980,-3540.59504822,0.000255,2]
[313646878,1707534631992,-842.26534996,0.000255,2]
[313646879,1707534632003,-979.38,0.000255,2]
[313646886,1707534632123,-350.0,0.000255,2]
[313646888,1707534632134,-1647.65958399,0.000255,2]
[313646890,1707534632143,-1318.52,0.000255,2]
[313646892,1707534632152,-1313.22041601,0.000255,2]
[313646895,1707534632172,-4595.63958399,0.000255,2]
[313646897,1707534632181,-18921.43,0.000255,2]
[313646899,1707534632190,-499.99,0.000255,2]
[313646901,1707534632199,-7726.92,0.00026163,2]
[313646903,1707534632207,-476.44,0.00026191,2]
[313646905,1707534632216,-2000.0,0.00026218,2]
[313646907,1707534632225,-175.75,0.00026229,2]
[313646909,1707534632234,-615.68,0.00026249,2]
[313646911,1707534632243,-200.0,0.00026355,2]
[313646913,1707534632252,-157.012,0.00026498,2]
[313646915,1707534632261,-150.0,0.00026537,2]
[313646917,1707534632270,-252.34,0.00026617,2]
[313646919,1707534632279,-389.64,0.00026737,2]
[313646921,1707534632288,-250.0,0.00026754,2]
[313646923,1707534632297,-157.012,0.00026798,2]
[313646925,1707534632306,-765.85,0.00026865,2]
[313646927,1707534632315,-1300.0,0.00027,3]
[313646929,1707534632324,-174.74,0.00027,2]
[313646931,1707534632333,-384.32,0.00027105,2]
[313646932,1707534632342,-157.012,0.00027198,2]
[313646934,1707534632351,-172.02,0.00027364,2]
[313646936,1707534632360,-468.02838644,0.00027467,2]
[313646938,1707534632369,-200.0,0.00027467,2]
[313646939,1707534632378,-157.012,0.00027498,2]
[313646941,1707534632387,-166.32,0.00027755,2]
[313646943,1707534632396,-157.012,0.00027798,2]
[313646945,1707534632406,-151.72,0.00027803,2]
[313646947,1707534632415,-184.3,0.00027814,120]
[313646948,1707534632423,-309.97,0.00028108,10]
[313646950,1707534632434,-157.012,0.00028198,2]
[313646952,1707534632446,-389.64,0.00028381,2]
[313646954,1707534632455,-246.30084041,0.00028381,6]
[313646956,1707534632465,-157.012,0.00028498,2]
[313646957,1707534632474,-2209.36241972,0.00028643,2]
[313646959,1707534632484,-247.84931457,0.00028652,2]
[313646961,1707534632493,-2209.36241972,0.0002866,2]
[313646963,1707534632503,-8407.84277053,0.00028671,2]
[313646965,1707534632520,-9607.29693131,0.00028671,2]
[313646968,1707534632533,-644.81477819,0.00028671,2]
[313646970,1707534632548,-7812.25203037,0.00028671,2]
[313647028,1707534637847,-5189.94117156,0.00028671,2]
[313647030,1707534637860,-3009.26301564,0.00028671,2]
[313647035,1707534637903,-521.4827576,0.00028671,2]
[313647040,1707534637962,-5018.8725441,0.00028671,2]
[313647041,1707534637975,-767.21655974,0.00028671,2]
[313647042,1707534637986,-957.12524469,0.00028671,2]
[313647043,1707534638072,-3513.72,0.00028671,2]
[313647044,1707534638189,-1009.35934498,0.00028671,2]
[313647060,1707534640806,-603.39210404,0.00028671,2]
[313647076,1707534644564,-200.0,0.00027467,2]
[313647077,1707534644574,-250.0,0.00028119,2]
[313647078,1707534644584,-55.86561948,0.00028671,2]
[313647079,1707534644618,-1430.22040691,0.00028671,2]
[313647092,1707534645902,-652.9326512,0.00028671,2]
[313647093,1707534646063,-701.38468679,0.00028671,2]
[313647094,1707534646075,-1719.1200982,0.00028671,2]
[313647112,1707534746167,4308.07043994,0.00021529,2]
[313647113,1707534763899,4308.07043994,0.00021529,2]
[313647114,1707534783934,4308.07043994,0.00021529,2]
[313647115,1707534802954,468.02838644,0.00021529,2]
[313647116,1707534805940,4308.07043994,0.00021529,2]
[313647117,1707534816964,468.02838644,0.00021529,2]
[313647118,1707534821940,4308.07043994,0.00021529,2]
[313647119,1707534841404,468.02838644,0.00021529,2]
[313647120,1707534841939,2405.43333054,0.00021529,2]
[313647121,1707534858951,468.02838644,0.00021529,2]
[313647122,1707534867261,154.98,0.00027588,10]
[313647123,1707534880979,468.02838644,0.00021529,2]
[313647124,1707534897104,468.02838644,0.00021529,2]
[313647125,1707534921731,468.02838644,0.00021529,2]
[313647126,1707534941292,284.66833523,0.00021529,2]
[313647131,1707535318393,154.98,0.00027176,10]
[313647132,1707535631386,499154.00560375,0.00022,2]
[313647151,1707535831971,-533.54363831,0.00023989,2]
[313647153,1707535832052,-106.70436941,0.00023989,2]
[313647154,1707535832062,-646.47648549,0.0002399,2]
[313647155,1707535832071,-172.20722839,0.000249,2]
[313647156,1707535832081,-1908.91510247,0.00025,2]
[313647157,1707535832090,-1250.0,0.00025,3]
[313647158,1707535832099,-272.46,0.00025191,2]
[313647159,1707535832109,-155.37481053,0.00026081,2]
[313647160,1707535832118,-542.93,0.0002678,2]
[313647161,1707535832128,-250.0,0.00026786,2]
[313647162,1707535832137,-656.83132213,0.00026825,2]
[313647163,1707535832274,-311.06238185,0.00026825,2]
[313647166,1707535832313,-5987.13629602,0.00026825,2]
[313647168,1707535832323,-150.0,0.0002687,2]
[313647170,1707535832332,-1300.0,0.00027,3]
[313647172,1707535832341,-172.02,0.00027038,2]
[313647174,1707535832351,-150.36151763,0.00027149,2]
[313647176,1707535832360,-166.32,0.0002715,2]
[313647178,1707535832369,-492.55,0.00027293,2]
[313647179,1707535832378,-161.94,0.00027324,2]
[313647181,1707535832387,-1362.19,0.00027399,2]
[313647182,1707535832397,-272.46,0.00027455,2]
[313647183,1707535832407,-156.37331613,0.00027467,2]
[313647184,1707535832417,-178.23462802,0.00027467,2]
[313647185,1707535832426,-187.59944336,0.00027467,2]
[313647186,1707535832436,-367.30074198,0.00027467,2]
[313647187,1707535832445,-155.44052836,0.00027467,2]
[313647188,1707535832455,-156.22943834,0.00027467,2]
[313647189,1707535832464,-200.0,0.00027467,2]
[313647190,1707535832473,-689.56,0.00027521,2]
[313647191,1707535832483,-507.45,0.00027557,2]
[313647192,1707535832492,-157.012,0.00027598,2]
[313647193,1707535832502,-157.012,0.00027698,2]
[313647194,1707535832510,-157.012,0.00027798,2]
[313647195,1707535832520,-157.012,0.00027898,2]
[313647196,1707535832529,-157.012,0.00027998,2]
[313647197,1707535832538,-161.94,0.00028036,2]
[313647198,1707535832547,-157.012,0.00028098,2]
[313647199,1707535832556,-157.012,0.00028198,2]
[313647200,1707535832566,-155.75860696,0.0002827,2]
[313647201,1707535832576,-157.012,0.00028298,2]
[313647202,1707535832585,-157.012,0.00028398,2]
[313647203,1707535832594,-173.83424183,0.00028424,6]
[313647204,1707535832603,-542.93,0.00028424,2]
[313647205,1707535832613,-157.012,0.00028498,2]
[313647206,1707535832623,-1000.0,0.000285,2]
[313647207,1707535832633,-411.45030012,0.00028507,2]
[313647208,1707535832643,-500.0,0.00028508,2]
[313647209,1707535832653,-3771.85,0.00028508,2]
[313647210,1707535832662,-13116.73,0.00028508,2]
[313647211,1707535832672,-1146.73,0.00028508,2]
[313647212,1707535832681,-500.0,0.00028508,2]
[313647213,1707535832690,-1235.99,0.00028508,2]
[313647214,1707535832700,-3586.58,0.00028508,2]
[313647215,1707535832709,-1226.46,0.00028508,2]
[313647216,1707535832719,-604.29,0.00028508,2]
[313647217,1707535832728,-945.6,0.00028508,2]
[313647218,1707535832737,-4043.44,0.00028508,2]
[313647219,1707535832746,-1175.15,0.00028508,2]
[313647220,1707535832756,-1533.26,0.00028508,2]
[313647221,1707535832765,-500.0,0.00028508,2]
[313647222,1707535832774,-956.96,0.00028508,2]
[313647223,1707535832784,-13783.93,0.00028508,2]
[313647224,1707535832795,-500.0,0.00028508,2]
[313647225,1707535832805,-673.83,0.00028508,2]
[313647226,1707535832814,-3817.43,0.00028508,2]
[313647227,1707535832823,-1036.67,0.00028508,2]
[313647228,1707535832833,-500.0,0.00028508,2]
[313647229,1707535832842,-3551.58,0.00028508,2]
[313647230,1707535832851,-500.0,0.00028508,2]
[313647231,1707535832860,-516.19102646,0.00028508,2]
[313647232,1707535832870,-859.83,0.00028508,2]
[313647233,1707535832880,-891.7,0.00028508,2]
[313647234,1707535832889,-524.31443778,0.00028508,2]
[313647235,1707535832898,-500.0,0.00028508,2]
[313647236,1707535832907,-1279.11,0.00028508,2]
[313647237,1707535832916,-500.0,0.00028508,2]
[313647238,1707535832925,-282.07776597,0.00028508,2]
[313647239,1707535832934,-952.7,0.00028508,2]
[313647240,1707535832944,-528.3864388,0.00028508,2]
[313647241,1707535832952,-500.0,0.00028508,2]
[313647242,1707535832962,-520.34197649,0.00028508,2]
[313647243,1707535832971,-500.0,0.00028508,2]
[313647244,1707535832980,-500.0,0.00028508,2]
[313647245,1707535832990,-500.0,0.00028508,2]
[313647246,1707535832999,-632.37,0.00028508,2]
[313647247,1707535833008,-1161.29,0.00028508,2]
[313647248,1707535833018,-500.0,0.00028508,2]
[313647249,1707535833027,-500.0,0.00028508,2]
[313647250,1707535833036,-500.0,0.00028508,2]
[313647251,1707535833045,-150.59,0.00028593,2]
[313647252,1707535833054,-157.012,0.00028598,2]
[313647253,1707535833063,-160.86741914,0.00028607,2]
[313647254,1707535833074,-14400.4865,0.00028607,2]
[313647255,1707535833083,-390.0292,0.00028607,2]
[313647256,1707535833093,-190.6959,0.00028607,2]
[313647257,1707535833102,-500.0,0.00028608,2]
[313647258,1707535833111,-203.23643795,0.00028649,2]
[313647259,1707535833120,-1413.99194862,0.0002865,2]
[313647260,1707535833130,-1413.99194862,0.00028652,2]
[313647261,1707535833140,-6226.5015565,0.00028653,2]
[313647262,1707535833150,-19731.5107618,0.00028659,2]
[313647263,1707535833181,-318.4195,0.00028659,2]
[313647274,1707535837982,-500.0,0.00028508,2]
[313647275,1707535837991,-509.5023246,0.00028508,2]
[313647276,1707535838001,-500.0,0.00028508,2]